fUST/lending_fUST_20250306
["ID","MTS","AMOUNT","RATE_DAILY","PERIOD"]
[355527890,1741237858160,-500.0,0.00041643,120]
[355527891,1741237858170,-500.0,0.00041643,120]
[355527892,1741237858179,-536.07,0.00041643,120]
[355527893,1741237858187,-1247.47,0.00041643,120]
[355527894,1741237858197,-500.0,0.00041643,120]
[355527895,1741237858206,-500.0,0.00041643,120]
[355527896,1741237858215,-500.0,0.00041643,120]
[355527897,1741237858224,-500.0,0.00041643,120]
[355527898,1741237858233,-500.0,0.00041643,120]
[355527899,1741237858242,-500.0,0.00041643,120]
[355527900,1741237858251,-7432.7,0.00041643,14]
[355527901,1741237858260,-1066.09,0.00041643,120]
[355527902,1741237858270,-500.0,0.00041643,120]
[355527903,1741237858278,-500.0,0.00041643,120]
[355527904,1741237858287,-848.1,0.00041643,120]
[355527905,1741237858295,-10931.63,0.00041643,120]
[355527906,1741237858305,-500.0,0.00041643,120]
[355527907,1741237858314,-960.9,0.00041643,120]
[355527908,1741237858323,-902.96,0.00041643,120]
[355527909,1741237858331,-500.0,0.00041643,120]
[355527910,1741237858340,-500.0,0.00041643,120]
[355527911,1741237858349,-680.24,0.00041643,120]
[355527912,1741237858358,-3968.02,0.00041643,120]
[355527913,1741237858367,-500.0,0.00041643,120]
[355527914,1741237858375,-500.0,0.00041643,120]
[355527915,1741237858384,-500.0,0.00041643,120]
[355527916,1741237858393,-500.0,0.00041643,120]
[355527917,1741237858402,-500.0,0.00041643,120]
[355527918,1741237858410,-500.0,0.00041643,120]
[355527919,1741237858417,-500.0,0.00041643,120]
[355527920,1741237858426,-2248.82,0.00041643,120]
[355527921,1741237858435,-6096.48,0.00041643,120]
[355527922,1741237858444,-500.0,0.00041643,120]
[355527923,1741237858454,-879.45,0.00041643,120]
[355527924,1741237858463,-500.0,0.00041643,120]
[355527925,1741237858472,-500.0,0.00041643,120]
[355527926,1741237858481,-500.0,0.00041643,120]
[355527927,1741237858489,-500.0,0.00041643,120]
[355527928,1741237858498,-500.0,0.00041643,120]
[355527929,1741237858507,-500.0,0.00041643,120]
[355527930,1741237858517,-500.0,0.00041643,21]
[355527931,1741237858525,-500.0,0.00041643,120]
[355527932,1741237858534,-500.0,0.00041643,120]
[355527933,1741237858543,-502.13201691,0.00041643,2]
[355527934,1741237858552,-1349.0,0.0004167,60]
[355527935,1741237858562,-500.0,0.00041673,10]
[355527936,1741237858570,-384.68552977,0.00041673,10]
[355527937,1741237858579,-1349.0,0.00041698,60]
[355527938,1741237858588,-200.0,0.000417,120]
[355527939,1741237858597,-153.7216424,0.00041701,30]
[355527940,1741237858606,-1349.0,0.00041725,60]
[355527941,1741237858619,-1349.0,0.00041753,60]
[355527942,1741237858628,-1349.0,0.0004178,60]
[355527943,1741237858637,-1349.0,0.00041807,60]
[355527944,1741237858646,-500.0,0.00041821,120]
[355527945,1741237858656,-1349.0,0.00041835,60]
[355527946,1741237858667,-1349.0,0.00041862,60]
[355527947,1741237858676,-1353.27376537,0.0004189,60]
[355527948,1741237858686,-250.51698514,0.00041917,120]
[355527949,1741237858697,-537.16313615,0.00041917,120]
[355527950,1741237858706,-500.0,0.00041917,120]
[355527951,1741237858716,-500.0,0.00041917,120]
[355527952,1741237858725,-500.0,0.00041917,120]
[355527953,1741237858735,-500.0,0.00041917,120]
[355527954,1741237858745,-500.0,0.00041917,120]
[355527955,1741237858754,-500.0,0.00041917,120]
[355527956,1741237858764,-500.0,0.00041917,120]
[355527957,1741237858774,-502.44,0.00041917,120]
[355527958,1741237858783,-506.18270764,0.00041917,120]
[355527959,1741237858793,-500.0,0.00041917,120]
[355527960,1741237858803,-500.0,0.00041917,120]
[355527961,1741237858812,-500.0,0.00041917,120]
[355527962,1741237858821,-500.0,0.00041917,120]
[355527963,1741237858831,-500.0,0.00041917,120]
[355527964,1741237858840,-557.4335117,0.00041917,120]
[355527965,1741237858849,-500.0,0.00041917,120]
[355527966,1741237858859,-500.0,0.00041917,120]
[355527967,1741237858868,-500.0,0.00041917,120]
[355527968,1741237858877,-500.0,0.00041917,120]
[355527969,1741237858886,-500.0,0.00041917,120]
[355527970,1741237858894,-500.0,0.00041917,120]
[355527971,1741237858903,-500.0,0.00041917,120]
[355527972,1741237858912,-500.0,0.00041917,120]
[355527973,1741237858921,-500.0,0.00041917,120]
[355527974,1741237858930,-508.7213133,0.00041917,120]
[355527975,1741237858939,-500.0,0.00041917,120]
[355527976,1741237858947,-500.0,0.00041917,120]
[355527977,1741237858955,-500.0,0.00041917,120]
[355527978,1741237858964,-523.13878924,0.00041917,120]
[355527979,1741237858973,-500.0,0.00041917,120]
[355527980,1741237858982,-500.0,0.00041917,120]
[355527981,1741237858991,-506.80077168,0.00041917,120]
[355527982,1741237859000,-739.02,0.00041917,120]
[355527983,1741237859009,-500.0,0.00041917,120]
[355527984,1741237859018,-500.0,0.00041917,120]
[355527985,1741237859027,-500.0,0.00041917,120]
[355527986,1741237859036,-500.0,0.00041917,120]
[355527987,1741237859132,-461.40331324,0.00041917,120]
[355527988,1741237859142,-500.0,0.00041917,120]
[355527989,1741237859152,-500.0,0.00041917,120]
[355527990,1741237859161,-500.0,0.00041917,120]
[355527991,1741237859170,-500.0,0.00041917,120]
[355527992,1741237859180,-500.0,0.00041917,120]
[355527993,1741237859190,-500.0,0.00041917,120]
[355527994,1741237859199,-500.0,0.00041917,120]
[355527995,1741237859209,-1371.74,0.00041917,120]
[355527996,1741237859218,-529.48915547,0.00041917,120]
[355527997,1741237859227,-500.0,0.00041917,120]
[355527998,1741237859236,-500.0,0.00041917,120]
[355527999,1741237859246,-500.0,0.00041917,120]
[355528000,1741237859255,-555.29,0.00041917,120]
[355528001,1741237859266,-500.0,0.00041917,120]
[355528002,1741237859275,-500.0,0.00041917,120]
[355528003,1741237859285,-500.0,0.00041917,120]
[355528004,1741237859294,-500.0,0.00041917,120]
[355528005,1741237859303,-500.0,0.00041917,120]
[355528006,1741237859313,-500.0,0.00041917,120]
[355528007,1741237859322,-512.55257383,0.00041917,120]
[355528008,1741237859331,-459.02961759,0.00041917,120]
[355528009,1741237859340,-673.16,0.00041917,120]
[355528010,1741237859349,-500.0,0.00041917,120]
[355528011,1741237859359,-500.0,0.00041917,120]
[355528012,1741237859368,-615.42,0.00041917,120]
[355528013,1741237859377,-500.0,0.00041917,120]
[355528014,1741237859386,-500.0,0.00041917,120]
[355528015,1741237859395,-500.0,0.00041917,120]
[355528016,1741237859404,-500.0,0.00041917,120]
[355528017,1741237859413,-1050.23,0.00041917,120]
[355528018,1741237859421,-500.0,0.00041917,120]
[355528019,1741237859430,-500.0,0.00041917,120]
[355528020,1741237859439,-325.83771362,0.00041917,120]
[355528021,1741237859448,-500.0,0.00041917,120]
[355528022,1741237859457,-500.0,0.00041917,7]
[355528023,1741237859467,-500.0,0.00041917,120]
[355528024,1741237859476,-500.0,0.00041917,120]
[355528025,1741237859485,-500.0,0.00041917,120]
[355528026,1741237859494,-500.0,0.00041917,120]
[355528027,1741237859503,-500.0,0.00041917,120]
[355528028,1741237859512,-500.0,0.00041917,120]
[355528029,1741237859522,-500.0,0.00041917,120]
[355528030,1741237859531,-500.0,0.00041917,120]
[355528031,1741237859541,-500.0,0.00041917,120]
[355528032,1741237859551,-500.0,0.00041917,120]
[355528033,1741237859560,-500.0,0.00041917,120]
[355528034,1741237859569,-508.76660373,0.00041917,120]
[355528035,1741237859579,-500.0,0.00041917,120]
[355528036,1741237859587,-500.0,0.00041917,120]
[355528037,1741237859596,-500.0,0.00041917,120]
[355528038,1741237859605,-471.59372931,0.00041917,120]
[355528039,1741237859619,-500.0,0.00041917,120]
[355528040,1741237859628,-520.71117932,0.00041917,120]
[355528041,1741237859637,-500.0,0.00041917,120]
[355528042,1741237859646,-716.64,0.00041917,120]
[355528043,1741237859657,-608.38553293,0.00041917,120]
[355528044,1741237859666,-500.0,0.00041917,2]
[355528045,1741237859675,-500.0,0.00041917,120]
[355528046,1741237859684,-554.8,0.00041917,120]
[355528047,1741237859695,-667.04,0.00041917,2]
[355528048,1741237859705,-500.0,0.00041917,120]
[355528049,1741237859713,-500.0,0.00041917,120]
[355528050,1741237859722,-887.15,0.00041917,120]
[355528051,1741237859731,-500.0,0.00041917,120]
[355528052,1741237859739,-500.0,0.00041917,120]
[355528053,1741237859748,-500.0,0.00041917,120]
[355528054,1741237859757,-500.0,0.00041917,120]
[355528055,1741237859766,-623.87,0.00041917,120]
[355528056,1741237859775,-500.0,0.00041917,120]
[355528057,1741237859784,-500.0,0.00041917,120]
[355528058,1741237859793,-506.52099702,0.00041917,120]
[355528059,1741237859802,-500.0,0.00041917,120]
[355528060,1741237859812,-500.0,0.00041917,120]
[355528061,1741237859822,-500.0,0.00041917,120]
[355528062,1741237859831,-500.0,0.00041917,120]
[355528063,1741237859841,-746.65,0.00041917,120]
[355528064,1741237859850,-500.0,0.00041917,120]
[355528065,1741237859860,-500.0,0.00041917,120]
[355528066,1741237859870,-727.8,0.00041917,120]
[355528067,1741237859879,-500.0,0.00041917,120]
[355528068,1741237859889,-500.0,0.00041917,120]
[355528069,1741237859899,-518.31933925,0.00041917,120]
[355528070,1741237859908,-500.0,0.00041917,120]
[355528071,1741237859917,-500.0,0.00041917,120]
[355528072,1741237859925,-500.0,0.00041917,120]
[355528073,1741237859934,-500.0,0.00041917,120]
[355528074,1741237859943,-500.0,0.00041917,120]
[355528075,1741237859953,-500.0,0.00041917,120]
[355528076,1741237859962,-500.0,0.00041917,120]
[355528077,1741237859971,-500.0,0.00041917,120]
[355528078,1741237859981,-500.0,0.00041917,120]
[355528079,1741237859991,-500.0,0.00041917,120]
[355528080,1741237859999,-500.0,0.00041917,120]
[355528081,1741237860009,-500.0,0.00041917,120]
[355528082,1741237860020,-292.90118321,0.00041917,30]
[355528083,1741237860031,-500.0,0.00041917,120]
[355528084,1741237860040,-381.27391217,0.00041917,120]
[355528085,1741237860049,-500.0,0.00041917,120]
[355528086,1741237860059,-500.0,0.00041917,120]
[355528087,1741237860069,-500.0,0.00041917,120]
[355528088,1741237860078,-548.9257899,0.00041917,120]
[355528089,1741237860087,-500.0,0.00041917,120]
[355528090,1741237860096,-500.0,0.00041917,120]
[355528091,1741237860104,-500.0,0.00041917,120]
[355528092,1741237860113,-500.0,0.00041917,120]
[355528093,1741237860124,-500.0,0.00041917,14]
[355528094,1741237860144,-500.0,0.00041917,120]
[355528095,1741237860153,-500.0,0.00041917,120]
[355528096,1741237860163,-500.0,0.00041917,120]
[355528097,1741237860172,-500.0,0.00041917,120]
[355528098,1741237860181,-1078.51,0.00041917,120]
[355528099,1741237860190,-500.0,0.00041917,120]
[355528100,1741237860199,-500.0,0.00041917,120]
[355528101,1741237860208,-500.0,0.00041917,120]
[355528102,1741237860218,-500.0,0.00041917,120]
[355528103,1741237860227,-500.0,0.00041917,120]
[355528104,1741237860237,-500.0,0.00041917,120]
[355528105,1741237860246,-500.0,0.00041917,120]
[355528106,1741237860255,-500.0,0.00041917,120]
[355528107,1741237860266,-884.88,0.00041917,120]
[355528108,1741237860276,-858.76,0.00041917,120]
[355528109,1741237860285,-833.49,0.00041917,120]
[355528110,1741237860294,-500.0,0.00041917,120]
[355528111,1741237860303,-500.0,0.00041917,120]
[355528112,1741237860312,-834.25,0.00041917,120]
[355528113,1741237860321,-632.98,0.00041917,120]
[355528114,1741237860330,-528.00754535,0.00041917,120]
[355528115,1741237860339,-500.0,0.00041917,120]
[355528116,1741237860348,-500.0,0.00041917,120]
[355528117,1741237860356,-500.0,0.00041917,120]
[355528118,1741237860366,-496.07915802,0.00041917,120]
[355528119,1741237860375,-500.0,0.00041917,120]
[355528120,1741237860384,-500.0,0.00041917,120]
[355528121,1741237860393,-500.0,0.00041917,120]
[355528122,1741237860403,-500.0,0.00041917,120]
[355528123,1741237860412,-1000.0,0.00041917,120]
[355528124,1741237860421,-500.0,0.00041917,120]
[355528125,1741237860430,-500.0,0.00041917,120]
[355528126,1741237860439,-500.0,0.00041917,120]
[355528127,1741237860448,-643.2660645,0.00041917,120]
[355528128,1741237860457,-500.0,0.00041917,120]
[355528129,1741237860466,-500.0,0.00041917,120]
[355528130,1741237860475,-500.0,0.00041917,120]
[355528131,1741237860484,-500.0,0.00041917,120]
[355528132,1741237860492,-500.0,0.00041917,120]
[355528133,1741237860501,-500.0,0.00041917,120]
[355528134,1741237860510,-699.26,0.00041917,120]
[355528135,1741237860520,-500.0,0.00041917,120]
[355528136,1741237860529,-500.0,0.00041917,120]
[355528137,1741237860538,-500.0,0.00041917,2]
[355528138,1741237860547,-500.0,0.00041917,120]
[355528139,1741237860556,-500.0,0.00041917,120]
[355528140,1741237860565,-630.68,0.00041917,120]
[355528141,1741237860575,-500.0,0.00041917,120]
[355528142,1741237860583,-500.0,0.00041917,120]
[355528143,1741237860592,-500.0,0.00041917,120]
[355528144,1741237860601,-500.0,0.00041917,120]
[355528145,1741237860611,-679.03,0.00041917,120]
[355528146,1741237860624,-831.57,0.00041917,120]
[355528147,1741237860633,-500.0,0.00041917,120]
[355528148,1741237860641,-500.0,0.00041917,120]
[355528149,1741237860657,-526.38240249,0.00041917,120]
[355528150,1741237860672,-2036.43,0.00041917,10]
[355528151,1741237860681,-500.0,0.00041917,120]
[355528152,1741237860690,-500.0,0.00041917,120]
[355528153,1741237860699,-500.0,0.00041917,120]
[355528154,1741237860708,-500.0,0.00041917,120]
[355528155,1741237860717,-500.0,0.00041917,120]
[355528156,1741237860726,-500.0,0.00041917,120]
[355528157,1741237860734,-500.0,0.00041917,120]
[355528158,1741237860743,-500.0,0.00041917,120]
[355528159,1741237860751,-500.0,0.00041917,120]
[355528160,1741237860760,-500.0,0.00041917,120]
[355528161,1741237860770,-500.0,0.00041917,120]
[355528162,1741237860779,-500.0,0.00041917,120]
[355528163,1741237860788,-500.0,0.00041917,30]
[355528164,1741237860797,-500.0,0.00041917,120]
[355528165,1741237860806,-594.5,0.00041917,120]
[355528166,1741237860815,-500.0,0.00041917,120]
[355528167,1741237860824,-500.0,0.00041917,120]
[355528168,1741237860832,-500.0,0.00041917,120]
[355528169,1741237860841,-500.0,0.00041917,120]
[355528170,1741237860850,-500.0,0.00041917,120]
[355528171,1741237860859,-500.0,0.00041917,120]
[355528172,1741237860868,-2108.65,0.00041917,120]
[355528173,1741237860877,-500.0,0.00041917,120]
[355528174,1741237860885,-500.0,0.00041917,120]
[355528175,1741237860895,-655.33,0.00041917,120]
[355528176,1741237860905,-500.0,0.00041917,120]
[355528177,1741237860914,-717.97,0.00041917,120]
[355528178,1741237860923,-500.0,0.00041917,120]
[355528179,1741237860932,-500.0,0.00041917,120]
[355528180,1741237860941,-510.53516769,0.00041917,120]
[355528181,1741237860950,-500.0,0.00041917,120]
[355528182,1741237860959,-500.0,0.00041917,120]
[355528183,1741237860968,-515.26337323,0.00041917,120]
[355528184,1741237860977,-519.45983439,0.00041917,120]
[355528185,1741237860986,-743.04,0.00041917,120]
[355528186,1741237860995,-500.0,0.00041917,120]
[355528187,1741237861005,-500.0,0.00041917,120]
[355528188,1741237861014,-535.94476367,0.00041917,120]
[355528189,1741237861024,-2423.24,0.00041917,120]
[355528190,1741237861038,-521.54,0.00041917,120]
[355528191,1741237861047,-500.0,0.00041917,120]
[355528192,1741237861056,-500.0,0.00041917,120]
[355528193,1741237861065,-200.0,0.00041917,7]
[355528194,1741237861074,-500.0,0.00041917,120]
[355528195,1741237861083,-500.0,0.00041917,120]
[355528196,1741237861092,-919.59,0.00041917,120]
[355528197,1741237861102,-500.0,0.00041917,120]
[355528198,1741237861110,-500.0,0.00041917,120]
[355528199,1741237861119,-500.0,0.00041917,120]
[355528200,1741237861128,-500.0,0.00041917,120]
[355528201,1741237861137,-500.0,0.00041917,120]
[355528202,1741237861146,-215.54187991,0.00041917,120]
[355528203,1741237861154,-500.0,0.00041917,120]
[355528204,1741237861163,-500.0,0.00041917,120]
[355528205,1741237861172,-500.0,0.00041917,120]
[355528206,1741237861182,-993.65,0.00041917,120]
[355528207,1741237861191,-500.0,0.00041917,120]
[355528208,1741237861199,-500.0,0.00041917,120]
[355528209,1741237861208,-500.0,0.00041917,120]
[355528210,1741237861217,-500.0,0.00041917,120]
[355528211,1741237861227,-520.20293977,0.00041917,120]
[355528212,1741237861236,-1355.24,0.00041917,120]
[355528213,1741237861245,-500.0,0.00041917,120]
[355528214,1741237861254,-880.41,0.00041917,120]
[355528215,1741237861263,-500.0,0.00041917,120]
[355528216,1741237861272,-500.0,0.00041917,120]
[355528217,1741237861282,-500.0,0.00041917,120]
[355528218,1741237861291,-500.0,0.00041917,120]
[355528219,1741237861301,-500.0,0.00041917,120]
[355528220,1741237861417,-500.0,0.00041917,120]
[355528221,1741237861427,-500.0,0.00041917,120]
[355528222,1741237861437,-500.0,0.00041917,120]
[355528223,1741237861446,-500.0,0.00041917,120]
[355528224,1741237861456,-500.0,0.00041917,120]
[355528225,1741237861465,-500.0,0.00041917,120]
[355528226,1741237861475,-574.84,0.00041917,120]
[355528227,1741237861484,-593.36,0.00041917,120]
[355528228,1741237861493,-500.0,0.00041917,120]
[355528229,1741237861503,-500.0,0.00041917,120]
[355528230,1741237861512,-500.0,0.00041917,120]
[355528231,1741237861523,-500.0,0.00041917,120]
[355528232,1741237861533,-500.0,0.00041917,120]
[355528233,1741237861542,-500.0,0.00041917,120]
[355528234,1741237861552,-1391.45,0.00041917,120]
[355528235,1741237861562,-801.42,0.00041917,120]
[355528236,1741237861571,-500.0,0.00041917,120]
[355528237,1741237861580,-500.0,0.00041917,120]
[355528238,1741237861590,-500.0,0.00041917,120]
[355528239,1741237861599,-500.0,0.00041917,120]
[355528240,1741237861610,-500.0,0.00041917,120]
[355528241,1741237861622,-1637.54,0.00041917,120]
[355528242,1741237861632,-500.0,0.00041917,120]
[355528243,1741237861641,-1277.32,0.00041917,120]
[355528244,1741237861650,-500.0,0.00041917,120]
[355528245,1741237861662,-500.0,0.00041917,120]
[355528246,1741237861670,-500.0,0.00041917,120]
[355528247,1741237861679,-648.9,0.00041917,120]
[355528248,1741237861688,-500.0,0.00041917,120]
[355528249,1741237861699,-500.0,0.00041917,120]
[355528250,1741237861708,-622.27,0.00041917,120]
[355528251,1741237861717,-500.0,0.00041917,120]
[355528252,1741237861726,-500.0,0.00041917,120]
[355528253,1741237861735,-500.0,0.00041917,120]
[355528254,1741237861744,-500.0,0.00041917,120]
[355528255,1741237861753,-500.0,0.00041917,120]
[355528256,1741237861762,-1008.22,0.00041917,120]
[355528257,1741237861772,-500.0,0.00041917,120]
[355528258,1741237861781,-500.0,0.00041917,120]
[355528259,1741237861789,-500.0,0.00041917,120]
[355528260,1741237861798,-500.0,0.00041917,120]
[355528261,1741237861806,-500.0,0.00041917,120]
[355528262,1741237861816,-500.0,0.00041917,120]
[355528263,1741237861825,-500.0,0.00041917,120]
[355528264,1741237861834,-500.0,0.00041917,120]
[355528265,1741237861843,-500.0,0.00041917,120]
[355528266,1741237861851,-234.9085286,0.00041917,120]
[355528267,1741237861860,-500.0,0.00041917,120]
[355528268,1741237861869,-1098.8,0.00041917,120]
[355528269,1741237861879,-500.0,0.00041917,120]
[355528270,1741237861889,-2064.99,0.00041917,120]
[355528271,1741237861898,-500.0,0.00041917,120]
[355528272,1741237861907,-518.68640899,0.00041917,120]
[355528273,1741237861915,-500.0,0.00041917,120]
[355528274,1741237861924,-500.0,0.00041917,120]
[355528275,1741237861933,-500.0,0.00041917,120]
[355528276,1741237861942,-1225.72,0.00041917,120]
[355528277,1741237861951,-1013.26,0.00041917,120]
[355528278,1741237861960,-500.0,0.00041917,120]
[355528279,1741237861969,-500.0,0.00041917,120]
[355528280,1741237861977,-2252.5,0.00041917,120]
[355528281,1741237861986,-500.0,0.00041917,120]
[355528282,1741237861995,-500.0,0.00041917,120]
[355528283,1741237862005,-500.0,0.00041917,120]
[355528284,1741237862015,-500.0,0.00041917,120]
[355528285,1741237862024,-500.0,0.00041917,120]
[355528286,1741237862034,-500.0,0.00041917,120]
[355528287,1741237862043,-2440.78,0.00041917,120]
[355528288,1741237862052,-500.0,0.00041917,120]
[355528289,1741237862062,-1000.0,0.00041917,120]
[355528290,1741237862071,-500.0,0.00041917,120]
[355528291,1741237862080,-508.13272254,0.00041917,120]
[355528292,1741237862090,-500.0,0.00041917,120]
[355528293,1741237862099,-500.0,0.00041917,120]
[355528294,1741237862108,-500.0,0.00041917,120]
[355528295,1741237862118,-500.0,0.00041917,120]
[355528296,1741237862128,-500.0,0.00041917,120]
[355528297,1741237862138,-500.0,0.00041917,120]
[355528298,1741237862147,-1145.66,0.00041917,120]
[355528299,1741237862156,-2132.95,0.00041917,120]
[355528300,1741237862166,-500.0,0.00041917,120]
[355528301,1741237862175,-506.60664564,0.00041917,120]
[355528302,1741237862184,-1245.45,0.00041917,120]
[355528303,1741237862194,-500.0,0.00041917,120]
[355528304,1741237862203,-500.0,0.00041917,120]
[355528305,1741237862212,-500.0,0.00041917,120]
[355528306,1741237862221,-517.27708127,0.00041917,120]
[355528307,1741237862230,-500.0,0.00041917,120]
[355528308,1741237862238,-500.0,0.00041917,120]
[355528309,1741237862247,-844.52,0.00041917,120]
[355528310,1741237862256,-500.0,0.00041917,120]
[355528311,1741237862266,-500.0,0.00041917,120]
[355528312,1741237862275,-288.04930837,0.00041917,120]
[355528313,1741237862284,-941.76,0.00041917,120]
[355528314,1741237862293,-700.87,0.00041917,120]
[355528315,1741237862303,-500.0,0.00041917,120]
[355528316,1741237862312,-500.0,0.00041917,120]
[355528317,1741237862322,-500.0,0.00041917,120]
[355528318,1741237862331,-505.3647724,0.00041917,120]
[355528319,1741237862341,-500.0,0.00041917,120]
[355528320,1741237862350,-579.97,0.00041917,120]
[355528321,1741237862360,-500.0,0.00041917,120]
[355528322,1741237862369,-500.0,0.00041917,120]
[355528323,1741237862379,-500.0,0.00041917,120]
[355528324,1741237862390,-500.0,0.00041917,120]
[355528325,1741237862399,-500.0,0.00041917,120]
[355528326,1741237862409,-500.0,0.00041917,120]
[355528327,1741237862419,-500.0,0.00041917,120]
[355528328,1741237862428,-500.0,0.00041917,120]
[355528329,1741237862438,-1710.39,0.00041917,120]
[355528330,1741237862448,-500.0,0.00041917,120]
[355528331,1741237862457,-525.48924797,0.00041917,120]
[355528332,1741237862466,-2233.27,0.00041917,120]
[355528333,1741237862475,-500.0,0.00041917,30]
[355528334,1741237862484,-500.0,0.00041917,120]
[355528335,1741237862493,-500.0,0.00041917,120]
[355528336,1741237862502,-525.93,0.00041917,120]
[355528337,1741237862510,-878.92,0.00041917,120]
[355528338,1741237862520,-1667.93,0.00041917,120]
[355528339,1741237862530,-500.0,0.00041917,120]
[355528340,1741237862540,-500.0,0.00041917,120]
[355528341,1741237862550,-500.0,0.00041917,120]
[355528342,1741237862559,-500.0,0.00041917,120]
[355528343,1741237862569,-773.17,0.00041917,120]
[355528344,1741237862578,-500.0,0.00041917,120]
[355528345,1741237862587,-710.43,0.00041917,120]
[355528346,1741237862595,-500.0,0.00041917,120]
[355528347,1741237862604,-1122.54,0.00041917,120]
[355528348,1741237862614,-517.50793144,0.00041917,120]
[355528349,1741237862623,-929.52,0.00041917,120]
[355528350,1741237862632,-665.54,0.00041917,120]
[355528351,1741237862642,-500.0,0.00041917,120]
[355528352,1741237862651,-11268.24,0.00041917,120]
[355528353,1741237862661,-500.0,0.00041917,120]
[355528354,1741237862670,-520.81,0.00041917,120]
[355528355,1741237862679,-500.0,0.00041917,120]
[355528356,1741237862688,-500.0,0.00041917,120]
[355528357,1741237862696,-980.75,0.00041917,120]
[355528358,1741237862705,-515.98,0.00041917,120]
[355528359,1741237862713,-2137.6,0.00041917,120]
[355528360,1741237862722,-7648.47,0.00041917,120]
[355528361,1741237862731,-500.0,0.00041917,120]
[355528362,1741237862740,-500.0,0.00041917,120]
[355528363,1741237862750,-500.0,0.00041917,120]
[355528364,1741237862760,-3842.31,0.00041917,120]
[355528365,1741237862768,-690.9,0.00041917,120]
[355528366,1741237862778,-998.23,0.00041917,120]
[355528367,1741237862786,-2904.75,0.00041917,120]
[355528368,1741237862796,-500.0,0.00041917,120]
[355528369,1741237862804,-3521.3,0.00041917,120]
[355528370,1741237862813,-500.0,0.00041917,120]
[355528371,1741237862822,-500.0,0.00041917,120]
[355528372,1741237862830,-6868.17,0.00041917,120]
[355528373,1741237862839,-500.0,0.00041917,120]
[355528374,1741237862848,-4655.01,0.00041917,120]
[355528375,1741237862857,-1372.01,0.00041917,120]
[355528376,1741237862867,-500.0,0.00041917,120]
[355528377,1741237862876,-500.0,0.00041917,120]
[355528378,1741237862885,-509.14,0.00041917,120]
[355528379,1741237862894,-1028.46,0.00041917,120]
[355528380,1741237862903,-500.0,0.00041917,120]
[355528381,1741237862911,-11673.71,0.00041917,120]
[355528382,1741237862919,-500.0,0.00041917,120]
[355528383,1741237862928,-536.32,0.00041917,120]
[355528384,1741237862937,-500.0,0.00041917,120]
[355528385,1741237862946,-500.0,0.00041917,120]
[355528386,1741237862954,-520.23849871,0.00041917,120]
[355528387,1741237862962,-559.12,0.00041917,120]
[355528388,1741237862971,-696.97,0.00041917,120]
[355528389,1741237862980,-869.32,0.00041917,120]